Workbook

Sheet TOTAL
A1: INTERDISCIPLINARY CHAIRS/ADVISORS - BUMPERS COLLEGE FACULTY*
A2: Spring 2019
E4: Program | F4: # of | G4: # of
F5: Students | G5: Faculty
A6: Department of AEAB
E7: ENDYPH | F7: 1 | G7: 1
E8: PUBPPH | F8: 7 | G8: 5
E9: TOTAL | F9: =SUM(F7:F8) -> 8 | G9: (6)
A10: Department of AECT
E11: ENDYPH | F11: 1 | G11: 1
E12: TOTAL | F12: =SUM(F11) -> 1 | G12: (1)
A13: Department of Animal Science
E14: CEMBPH | F14: 3 | G14: 3
E15: TOTAL | F15: =SUM(F14) -> 3 | G15: (3)
A16: Department of CSES
E17: CEMBMS | F17: 3 | G17: 3
E18: CEMBPH | F18: 1 | G18: 1
E19: ENDYPH | F19: 3 | G19: 2
E20: TOTAL | F20: =SUM(F17:F19) -> 7 | G20: (6)
A21: Department of Food Science
E22: CEMBPH | F22: 6 | G22: 6
E23: TOTAL | F23: =SUM(F22:F22) -> 6 | G23: (6)
A24: Department of Horticulture
E25: CEMBPH | F25: 1 | G25: 1
E26: PTSCPH | F26: 5 | G26: 4
E27: TOTAL | F27: =SUM(F25:F26) -> 6 | G27: (4)
A28: Department of Human Environ Sciences
E29: CEMBMS | F29: 1 | G29: 1
E30: PUBPPH | F30: 1 | G30: 1
E31: TOTAL | F31: =SUM(F29:F30) -> 2 | G31: (2)
A32: Department of Plant Pathology
E33: CEMBPH | F33: 4 | G33: 2
E34: PTSCPH | F34: 8 | G34: 7
E35: TOTAL | F35: =SUM(F33:F34) -> 12 | G35: (7)
A36: Department of Poultry Science
E37: CEMBPH | F37: 5 | G37: 5
E38: TOTAL | F38: =SUM(F37:F37) -> 5 | G38: (5)
A39: TOTAL | F39: =SUM(F9+F12+F15+F20+F23+F27+F31+F35+F38) -> 50 | G39: (40)
A41: *Participation may include any of the following: Advisor; chair of advisory
A42: committee; chair of thesis/dissertation committee. If a faculty member
A43: serves on a committee, but does not chair that committee, he/she is not
A44: included in these data.
A45: **In the column above, faculty may be counted more than once if they mentor multiple
A46: students. Forty individual faculty in the Bumpers College mentored one or more
A47: students in these interdisciplinary programs.

Sheet DEPT
A1: INTERDISCIPLINARY CHAIRS/ADVISORS - BUMPERS COLLEGE FACULTY
A2: Spring 2019
A4: Dept | B4: Name | C4: Program | D4: #STUD
A6: AEAB | B6: Kovacs | C6: PUBPPH | D6: 1
B7: Mackenzie | C7: PUBPPH | D7: 1
B8: Nalley | C8: ENDYPH | D8: 1
B9: Popp, J. | C9: PUBPPH | D9: 1
B10: Rainey | C10: PUBPPH | D10: 1
B11: Wailes | C11: PUBPPH | D11: 3
A12: AEAB Subtotal | D12: =SUM(D6:D11) -> 8
A13: AECT | B13: Shoulders | C13: ENDYPH | D13: 1
A14: AECT Subtotal | D14: =SUM(D13) -> 1
A15: ANSC | B15: Huang | C15: CEMBPH | D15: 1
B16: Rorie | C16: CEMBPH | D16: 1
B17: Zhao | C17: CEMBPH | D17: 1
A18: ANSC Subtotal | D18: =SUM(D15:D17) -> 3
A19: CSES | B19: Brye | C19: ENDYPH | D19: 1
B20: Burgos | C20: CEMBMS | D20: 1
B21: Miller | C21: ENDYPH | D21: 2
B22: Pereira | C22: CEMBMS | D22: 1
B23: Savin | C23: CEMBMS | D23: 1
B24: Srivastava | C24: CEMBPH | D24: 1
A25: CSES Subtotal | D25: =SUM(D19:D24) -> 7
A26: FDSC | B26: Atungulu | C26: CEMBPH | D26: 1
B27: Baum | C27: CEMBPH | D27: 1
B28: Carbonero | C28: CEMBPH | D28: 1
B29: Gibson | C29: CEMBPH | D29: 1
B30: Hettiarachchy | C30: CEMBPH | D30: 1
B31: Ricke | C31: CEMBPH | D31: 1
A32: FDSC Subtotal | D32: =SUM(D26:D31) -> 6
A33: HESC | B33: Killian | C33: PUBPPH | D33: 1
B34: Trudo | C34: CEMBMS | D34: 1
A35: HESC Subtotal | D35: =SUM(D33:D34) -> 2
A36: HORT | B36: Clark | C36: PTSCPH | D36: 1
B37: Richardson | C37: PTSCPH | D37: 1
B38: Shi | C38: CEMBPH | D38: 1
B39: Shi | C39: PTSCPH | D39: 2
B40: Worthington | C40: PTSCPH | D40: 1
A41: HORT Subtotal | D41: =SUM(D36:D40) -> 6
A42: PLPA | B42: Bluhm | C42: CEMBPH | D42: 2
B43: Bluhm | C43: PTSCPH | D43: 1
B44: Egan | C44: CEMBPH | D44: 2
B45: Egan | C45: PTSCPH | D45: 1
B46: Korth | C46: PTSCPH | D46: 1
B47: Rojas | C47: PTSCPH | D47: 1
B48: Rupe | C48: PTSCPH | D48: 1
B49: Spurlock | C49: PTSCPH | D49: 1
B50: Tzanetakis | C50: PTSCPH | D50: 2
A51: PLPA Subtotal | D51: =SUM(D42:D50) -> 12
A52: POSC | B52: Bottje | C52: CEMBPH | D52: 1
B53: Hargis | C53: CEMBPH | D53: 1
B54: Kuenzel | C54: CEMBPH | D54: 1
B55: Kwon | C55: CEMBPH | D55: 1
B56: Sun | C56: CEMBPH | D56: 1
A57: POSC Subtotal | D57: =SUM(D52:D56) -> 5
A58: TOTAL | D58: =SUM(D12+D14+D18+D25+D32+D35+D41+D51+D57) -> 50

Sheet DEGREES CONFERRED
A2: Master's Degrees Awarded in Interdisciplinary Degree Programs as a Percentage of all
A3: Master's Degrees Awarded, 2000/01-2017/18
B5: CEMBMS | C5: CLCSMA | D5: MEPHMS | E5: SPACMS | F5: STANMS | G5: TOTAL | H5: UNIV | I5: % UNIV
A6: 2017-18 | B6: 11 | C6: 1 | D6: 5 | E6: 1 | F6: 8 | G6: =SUM(B6:F6) -> 26 | H6: 1114 | I6: =PRODUCT(G6*1/H6) -> 0.02333931777
A7: 2016-17 | B7: 9 | C7: 1 | D7: 10 | E7: 2 | F7: 7 | G7: =SUM(B7:F7) -> 29 | H7: 1192 | I7: =PRODUCT(G7*1/H7) -> 0.02432885906
A8: 2015-16 | B8: 11 | C8: 2 | D8: 8 | E8: 1 | F8: 8 | G8: =SUM(B8:F8) -> 30 | H8: 1182 | I8: =PRODUCT(G8*1/H8) -> 0.02538071066
A9: 2014-15 | B9: 5 | C9: 2 | D9: 18 | E9: 1 | F9: 2 | G9: =SUM(B9:F9) -> 28 | H9: 1208 | I9: 0.02317880795
A10: 2013-14 | B10: 4 | C10: 0 | D10: 8 | E10: 1 | G10: =SUM(B10:E10) -> 13 | H10: 1088 | I10: 0.01194852941
A11: 2012-13 | B11: 5 | C11: 2 | D11: 12 | E11: 1 | G11: =SUM(B11:E11) -> 20 | H11: 1121 | I11: 0.0178412132
A12: 2011-12 | B12: 5 | C12: 3 | D12: 9 | E12: 1 | G12: =SUM(B12:E12) -> 18 | H12: 1140 | I12: 0.01578947368
A13: 2010-11 | B13: 7 | C13: 1 | D13: 4 | E13: 0 | G13: =SUM(B13:E13) -> 12 | H13: 1097 | I13: 0.01093892434 | K13: CEMB = Cell & Molecular Biology
A14: 2009-10 | B14: 1 | C14: 1 | D14: 4 | E14: 0 | G14: 6 | H14: 1035 | I14: =PRODUCT(G14*1/H14) -> 0.005797101449 | L14: AFLS, ARSC, EDUC, ENGR
A15: 2008-09 | B15: 1 | C15: 0 | D15: 11 | E15: 0 | G15: 12 | H15: 946 | I15: 0.01268498943 | K15: CLCS = Comparative Lit & Cult Studies
A16: 2007-08 | B16: 4 | C16: 2 | D16: 15 | E16: 1 | G16: 22 | H16: 963 | I16: 0.02284527518 | L16: ARSC (ENGL and WLLC)
A17: 2006-07 | B17: 5 | C17: 1 | D17: 13 | E17: 0 | G17: 19 | H17: 938 | I17: 0.02025586354 | K17: ENDY = Environmental Dynamics
A18: 2005-06 | B18: 7 | C18: 0 | D18: 7 | E18: 1 | G18: 15 | H18: 987 | I18: 0.01519756839 | L18: AFLS, ARCH, ARSC, ENGR
A19: 2004-05 | B19: 10 | C19: 3 | D19: 7 | G19: 20 | H19: 909 | I19: 0.02200220022 | K19: MEPH = Microelectronics-Photonics
A20: 2003-04 | B20: 4 | C20: 0 | D20: 8 | G20: 12 | H20: 833 | I20: 0.0144057623 | L20: AFLS, ARSC, ENGR
A21: 2002-03 | B21: 3 | C21: 3 | D21: 4 | G21: 10 | H21: 803 | I21: 0.01245330012 | K21: PTSC = Plant Science
A22: 2001-02 | B22: 1 | C22: 0 | D22: 7 | G22: 8 | H22: 736 | I22: 0.01086956522 | L22: AFLS (HORT and PLPA)
A23: 2000-01 | B23: 0 | C23: 3 | D23: 4 | G23: 7 | H23: 737 | I23: 0.009497964722 | K23: PUBP = Public Policy
A24: TOTAL | B24: =SUM(B6:B23) -> 93 | C24: 25 | D24: 154 | E24: 10 | F24: 25 | G24: 307 | H24: 18029 | I24: =PRODUCT(G24*1/H24) -> 0.01702812136 | L24: AFLS, ARSC, EDUC
K25: SPAC = Space & Planetary Sciences
L26: ARSC, ENGR
A27: Doctoral Degrees Awarded in Interdisciplinary Degree Programs as a Percentage of all | K27: STAN = Statistics and Analytics
A28: Doctoral Degrees Awarded, 2000/01-2017/18 | L28: ARSC, EDUC, ENGR,WCOB
B30: CEMBPH | C30: CLCSPH | D30: ENDYPH | E30: MEPHPH | F30: PTSCPH | G30: PUBPPH | H30: SPACPH | I30: TOTAL | J30: UNIV Doc | K30: % Doc | L30: UNIV Ph.D. | M30: % Ph.D.
A31: 2017-18 | B31: 15 | C31: 5 | D31: 4 | E31: 6 | F31: 0 | G31: 6 | H31: 2 | I31: =SUM(B31:H31) -> 38 | J31: 204 | K31: =PRODUCT(I31*1/J31) -> 0.1862745098 | L31: 179 | M31: =PRODUCT(I31*1/L31) -> 0.2122905028
A32: 2016-17 | B32: 4 | C32: 4 | D32: 7 | E32: 5 | F32: 0 | G32: 5 | H32: 1 | I32: =SUM(B32:H32) -> 26 | J32: 168 | K32: =PRODUCT(I32*1/J32) -> 0.1547619048
A33: 2015-16 | B33: 4 | C33: 4 | D33: 3 | E33: 3 | F33: 6 | G33: 8 | H33: 3 | I33: =SUM(B33:H33) -> 31 | J33: 178 | K33: =PRODUCT(I33*1/J33) -> 0.1741573034
A34: 2014-15 | B34: 6 | C34: 3 | D34: 4 | E34: 7 | F34: 2 | G34: 13 | H34: 2 | I34: =SUM(B34:H34) -> 37 | J34: 173 | K34: =PRODUCT(I34*1/J34) -> 0.2138728324
A35: 2013-14 | B35: 7 | C35: 0 | D35: 2 | E35: 5 | F35: 1 | G35: 7 | H35: 4 | I35: =SUM(A35:H35) -> 26 | J35: 150 | K35: =PRODUCT(I35*1/J35) -> 0.1733333333
A36: 2012-13 | B36: 6 | C36: 4 | D36: 2 | E36: 4 | F36: 4 | G36: 6 | H36: 7 | I36: =SUM(A36:H36) -> 33 | J36: 200 | K36: 0.165
A37: 2011-12 | B37: 9 | C37: 2 | D37: 6 | E37: 3 | F37: 1 | G37: 5 | H37: 2 | I37: =SUM(B37:H37) -> 28 | J37: 164 | K37: 0.1707317073
A38: 2010-11 | B38: 14 | C38: 2 | D38: 5 | E38: 5 | F38: 1 | G38: 9 | H38: 2 | I38: =SUM(A38:H38) -> 38 | J38: 166 | K38: 0.2289156627
A39: 2009-10 | B39: 6 | C39: 2 | D39: 5 | E39: 2 | F39: 3 | G39: 6 | H39: 5 | I39: 29 | J39: 147 | K39: 0.1972789116
A40: 2008-09 | B40: 5 | C40: 3 | D40: 3 | E40: 7 | F40: 4 | G40: 12 | H40: 1 | I40: 35 | J40: 160 | K40: 0.21875
A41: 2007-08 | B41: 8 | C41: 0 | D41: 6 | E41: 3 | F41: 2 | G41: 5 | H41: 0 | I41: 24 | J41: 144 | K41: 0.1666666667
A42: 2006-07 | B42: 3 | C42: 1 | D42: 4 | E42: 4 | F42: 5 | G42: 4 | H42: 0 | I42: 21 | J42: 115 | K42: 0.1826086957
A43: 2005-06 | B43: 6 | C43: 0 | D43: 4 | E43: 5 | F43: 3 | G43: 10 | H43: 1 | I43: 29 | J43: 134 | K43: 0.2164179104
A44: 2004-05 | B44: 3 | C44: 0 | D44: 3 | E44: 8 | F44: 4 | G44: 6 | H44: N/A | I44: 24 | J44: 145 | K44: 0.1655172414
A45: 2003-04 | B45: 2 | C45: 1 | D45: 4 | E45: 2 | F45: 1 | G45: 1 | H45: N/A | I45: 11 | J45: 110 | K45: 0.1
A46: 2002-03 | B46: 0 | C46: 2 | D46: 2 | E46: 2 | F46: 5 | G46: 1 | H46: N/A | I46: 12 | J46: 120 | K46: 0.1
A47: 2001-02 | B47: 0 | C47: 1 | D47: 7 | E47: 0 | F47: 2 | G47: 0 | H47: N/A | I47: 10 | J47: 106 | K47: 0.09433962264
A48: 2000-01 | B48: 0 | C48: 3 | D48: 1 | E48: 0 | F48: 0 | G48: 0 | H48: N/A | I48: 4 | J48: 89 | K48: 0.04494382022
A49: TOTAL | B49: =SUM(B31:B48) -> 98 | C49: 37 | D49: 72 | E49: 71 | F49: 44 | G49: 104 | H49: 30 | I49: 456 | J49: 2673 | K49: 0.1705948373
